Cogmind - Beta 16.1 @@@ ROGUE MODE // 2026.04.17 @ 19:10:59 Player: KURIIRI Result: Self-destructed Performance ------------- Evolutions (5) 2500 Regions Visited (12) 2400 Robots Destroyed (260) 1300 Value Destroyed (10752) 10752 Prototype IDs (27) 540 Alien Tech Used (0) 0 Bonus (8055) 8055 TOTAL SCORE: 25547 Bonus ------- High Alert Combat Kills 3184 Follower Combat Kills 2033 Entered Garrisons 200 Used RIF Installer 1000 Network Hubs Disabled 400 Registered with UFD 300 Met Optimus in HQ 500 Built Enhanced Grunts 300 A7 Reached Mainframe 300 Met R17 at Cetus 500 Friendly Fire -662 Cogmind --------- Core Integrity 850/1000 Matter 135/300 Energy 26/100 System Corruption 6% Temperature Warm (101) Movement Immobile (Siege) Location -5/Factory Parts ------- > --- POWER (1) -------- (None) > --- PROPULSION (4) --- Centrium Heavy Treads Overtuned Huge Scrapsphere > --- UTILITY (7) ------ Scrap Suit Improved Coolant Injector High-capacity Storage Unit Advanced Targeting Computer Advanced Targeting Computer > --- WEAPON (5) ------- Gauss Rifle Overtuned Coil Gun Tesla Bomb Launcher > --- INVENTORY (20) --- Micro Fission Core Quantum Reactor Centrium Heavy Treads Armored Huge Wheel Advanced Heat Sink Experimental Signal Interpreter Advanced Terrain Scanner Improved Medium Armor Plating Gun Armor Centrium Medium Armor Plating Centrium Medium Armor Plating Relay Coupler [NC] (29) Advanced KE Penetrator Improved Remote Datajack Powered Hammer Peak State ------------ > --- POWER ------------ Neutrino Core > --- PROPULSION ------- Centrium Heavy Treads Armored Huge Wheel > --- UTILITY ---------- High-capacity Storage Unit Advanced Terrain Scanner Seismic Detector Advanced Targeting Computer Centrium Medium Armor Plating Centrium Medium Armor Plating Centrium Medium Armor Plating > --- WEAPON ----------- Tesla Rifle Advanced KE Penetrator Advanced KE Penetrator Tesla Bomb Launcher Powered Hammer > --- INVENTORY -------- Fission Core Quantum Reactor Centrium Heavy Treads Armored Huge Wheel Matter Compressor Experimental Signal Interpreter Gun Armor Improved System Shield Relay Coupler [NC] Shock Bomb Launcher Improved Plasma Cutter [Rating: 109] Favorites ----------- Power Makeshift Power Source Engine Makeshift Power Source Power Core Fission Core Reactor Cold Fusion Reactor Propulsion Light Treads Treads Light Treads Leg Aluminum Leg Wheel Compact Wheel Utility Advanced Targeting Computer Device V3-11A's Pendant Storage High-capacity Storage Unit Processor Advanced Targeting Computer Hackware Relay Coupler [Sentry] Protection Layered Heavy Armor Plating Weapon Barrage Gun Energy Gun Medium Laser Energy Cannon Improved EM Pulse Cannon Ballistic Gun Barrage Gun Ballistic Cannon Bore Cannon Launcher Shock Bomb Launcher Special Weapon Improved Plasma Cutter Impact Weapon Powered Hammer Slashing Weapon Axe Build | -11 -10 -10 -8 -8 -6 -6 -6 -6 -6 -6 -6 -5 ------- Run | Yrd Mat Sub Rec Scr Fac Gar Fac Ext Cet Arc Hub Fac Slots Evolved 10 | . . . . . 8 . . . . . . 2 Power . | . . . . . . . . . . . . . Propulsion 2 | . . . . . 2 . . . . . . . Utility 5 | . . . . . 3 . . . . . . 2 Weapon 3 | . . . . . 3 . . . . . . . Parts Attached 137 | 3 10 10 . 7 17 17 11 16 4 17 2 23 Power 13 | . 2 2 . 1 1 1 2 1 . 1 . 2 Engine 5 | . 2 2 . 1 . . . . . . . . Core 7 | . . . . . . 1 2 1 . 1 . 2 Reactor 1 | . . . . . 1 . . . . . . . Propulsion 27 | 2 4 2 . 2 4 4 2 2 2 2 . 1 Treads 13 | 2 1 2 . . 2 2 . 2 . 2 . . Leg . | . . . . . . . . . . . . . Wheel 14 | . 3 . . 2 2 2 2 . 2 . . 1 Hover . | . . . . . . . . . . . . . Flight . | . . . . . . . . . . . . . Utility 45 | 1 1 1 . 3 5 6 2 5 2 8 1 10 Device 26 | 1 . 1 . 1 3 3 1 3 . 7 . 6 Storage 3 | . 1 . . 2 . . . . . . . . Processor 5 | . . . . . 1 . . . . . . 4 Hackware 1 | . . . . . . . . 1 . . . . Protection 10 | . . . . . 1 3 1 1 2 1 1 . Artifact . | . . . . . . . . . . . . . Weapon 52 | . 3 5 . 1 7 6 5 8 . 6 1 10 Energy Gun 5 | . 3 . . . . . . . . . . 2 Energy Cannon 2 | . . . . . . . . 2 . . . . Ballistic Gun 33 | . . 4 . 1 6 5 5 1 . 5 . 6 Ballistic Cannon 3 | . . 1 . . . . . 2 . . . . Launcher 3 | . . . . . . . . 1 . . . 2 Special Weapon 3 | . . . . . 1 . . 2 . . . . Impact Weapon 1 | . . . . . . . . . . . 1 . Slashing Weapon 2 | . . . . . . 1 . . . 1 . . Piercing Weapon . | . . . . . . . . . . . . . Special Melee Weapon . | . . . . . . . . . . . . . Unidentified Prototypes 8 | . . 1 . . 2 . . . 1 2 . 2 Corrupted Parts 5 | . . . . . . . . . . 5 . . System Corruption 38 | . . . . . . . . . . 38 . . Parts Lost 45 | . 2 3 . . 9 9 4 2 1 . 7 8 Power 9 | . 1 1 . . . 1 2 . . . . 4 Propulsion 6 | . 1 . . . 2 2 1 . . . . . Utility 11 | . . 1 . . 2 4 . . . . 3 1 Weapon 19 | . . 1 . . 5 2 1 2 1 . 4 3 Highest Loss Streak 6 | . 2 1 . . 6 2 2 1 1 . 5 4 To Critical Strikes 2 | . . . . . 1 . . . . . 1 . Average Backups 17 | 6 17 14 28 20 14 15 16 16 16 16 17 16 Power 1 | 1 . 1 4 1 1 2 2 2 1 1 2 2 Propulsion 3 | 4 6 4 5 3 2 1 1 2 2 2 2 2 Utility 7 | . 8 5 8 8 8 10 8 7 7 7 9 9 Weapon 3 | 1 2 3 8 5 1 . 1 1 2 3 2 2 Tool/Special . | . . . . . . . . . . . . . Unused Backups 66 | 6 1 16 1 22 . 3 2 2 2 . . 11 Power 8 | 1 1 . . 4 . . . . 1 . . 1 Propulsion 10 | 2 . 3 . 5 . . . . . . . . Utility 30 | 1 . 10 . 5 . 3 1 1 1 . . 8 Weapon 16 | 2 . 2 1 8 . . 1 1 . . . 1 Tool/Special 2 | . . 1 . . . . . . . . . 1 Average Slot Usage (%) 87 | . 85 90 85 89 86 85 89 84 85 81 79 83 Engine 8 | . 11 13 14 14 1 . . . . . . . Core 1 | . . . . . . 1 5 6 6 6 6 4 Treads 16 | . 8 27 28 15 7 3 13 13 1 3 6 5 Wheel 6 | . 18 . . 12 11 19 10 6 11 8 6 5 Device 7 | . 4 12 . 4 11 5 6 4 6 8 5 7 Storage 8 | . 14 6 14 13 6 6 6 6 6 6 6 5 Processor 2 | . . . . . 5 6 6 6 6 6 5 15 Protection 2 | . . . . . 1 8 5 6 12 5 6 5 Energy Gun 4 | . 24 7 . . . . . . . . . 4 Ballistic Gun 21 | . 3 18 28 28 32 22 32 19 2 25 32 19 Ballistic Cannon 1 | . . . . . . . . 4 13 1 . . Peak Build Rating 109 | 9 11 19 20 24 63 69 74 72 86 101 103 109 Average Rating 38 | 7 9 14 19 19 53 60 68 65 81 90 100 102 On Entrance 47 | 6 9 11 19 20 23 50 67 67 68 86 101 88 Avg Prop Armor Cover (%) 6 | . . . . 11 5 4 6 6 4 8 6 8 Naked Turns . | . . . . . . . . . . . . . Heaviest Build 151 | 12 150 151 151 151 81 97 96 106 106 103 103 106 Greatest Support 80 | 40 40 40 40 40 48 60 50 53 56 80 80 80 Greatest Overweight (x) 9 | . 9 4 3 7 2 2 5 3 3 3 3 4 Average Overweight (x) 2 | . 3 . 3 2 1 1 2 2 1 1 2 3 Largest Inventory Capacity 30 | 8 30 30 30 30 20 20 20 20 20 20 20 20 Average Capacity 21 | 8 23 17 30 26 20 20 20 20 20 20 20 20 Most Carried 30 | 6 28 30 30 30 18 20 20 20 20 20 20 20 Average Carried 19 | 5 18 15 29 21 15 17 19 19 19 19 19 19 Final Capacity 30 | 8 30 30 30 20 20 20 20 20 20 20 20 20 Final Carried 30 | 4 28 29 30 20 17 20 20 20 20 20 15 17 Scrap Suit Usage (%) 6 | . . . . . 98 1 . . . . . 51 Parts Cannibalized 5 | . . . . . 3 . . . . . . 2 Class Distribution -------------------- 34% | Hauler-Mutant 21% | Mutant 9% | Commander-Tank 7% | Derelict-Mutant 7% | Scavenger-Gunner 5% | Commander-Gunner 3% | Derelict-Tank 3% | Derelict-Gunner 3% | Scavenger-Tank Dominant Class ---------------- Hauler-Mutant | -10/Materials Mutant | -10/Subcaves Hauler-Mutant | -8/Recycling Derelict-Mutant | -8/Scraptown Derelict-Gunner | -6/Factory Derelict-Tank | -6/Garrison Scavenger-Gunner | -6/Factory Commander-Gunner | -6/Extension Commander-Tank | -6/Cetus Commander-Tank | -6/Archives Commander-Tank | -6/Hub_04(d) Scavenger-Scrapper | -5/Factory Resources | -11 -10 -10 -8 -8 -6 -6 -6 -6 -6 -6 -6 -5 ----------- Run | Yrd Mat Sub Rec Scr Fac Gar Fac Ext Cet Arc Hub Fac Matter Collected 8428 | 215 810 521 33 80 1037 1557 974 985 180 519 493 1024 Remotely . | . . . . . . . . . . . . . Salvage Created 13060 | 24 1198 257 92 . 1263 1407 1261 1955 542 615 1219 3227 Parts 599 | 4 61 21 1 . 58 79 52 65 22 38 54 144 Haulers Intercepted 7 | . 1 . . . 2 . . 1 . . 1 2 Recyclers Shooed 10 | . 5 . . . 1 . 1 1 . . . 2 Parts Field Recycled . | . . . . . . . . . . . . . Retrieved Matter . | . . . . . . . . . . . . . Parts Self-Destructed 28 | . . 28 . . . . . . . . . . Prevented . | . . . . . . . . . . . . . Parts Restored . | . . . . . . . . . . . . . Kills | -11 -10 -10 -8 -8 -6 -6 -6 -6 -6 -6 -6 -5 ------- Run | Yrd Mat Sub Rec Scr Fac Gar Fac Ext Cet Arc Hub Fac Combat Hostiles Destroyed 190 | . 20 7 . . 18 37 21 26 6 3 11 41 Guns 164 | . 19 7 . . 18 37 21 13 . 1 9 39 Cannons 8 | . . . . . . . . 6 . 2 . . AOE 8 | . . . . . . . . 4 . . 2 2 Classes Destroyed 23 | 1 8 4 . . 2 5 1 . . . 1 1 Worker 15 | . 2 . . . 1 . . . . . 5 7 Builder 8 | . 1 . . . 1 . . 2 . . 2 2 Tunneler 3 | 1 . . . . . . . . . . 2 . Hauler 7 | . 1 . . . 2 . . 1 . . 1 2 Recycler 12 | . 3 . 1 . . . 1 2 . . 1 4 Mechanic 1 | . . . . . . . . . . . . 1 Operator 10 | . 1 . . . . . . . . 9 . . Turret 1 | . . 1 . . . . . . . . . . Watcher 10 | . 3 . . . . 1 . 1 2 . 1 2 Swarmer 37 | . 3 4 . . 2 14 4 4 . . . 6 Cutter 6 | . . . . . . 4 . . . . . 2 Grunt 87 | . 17 . . . 11 10 10 13 . . 6 20 Brawler 7 | . . . . . . 1 3 . . . . 3 Duelist 4 | . . . . . . 1 . . . . . 3 Protector 2 | . . . . . . 2 . . . . . . Sentry 20 | . . 1 . . 2 3 1 4 . 3 3 3 Demolisher 2 | . . . . . . 2 . . . . . . Hunter 7 | . . . . . . . 2 2 . . 1 2 Programmer 5 | . . . . . 2 . 1 . . . . 2 Heavy 1 | . . . . . . . . . . . 1 . Behemoth 2 | . . . . . 1 . . 1 . . . . Cetus Guard 6 | . . . . . . . . . 6 . . . Enhanced Grunt 1 | . . . . . . . . . . . 1 . Artisan 2 | . . 2 . . . . . . . . . . Subdweller 2 | . . 2 . . . . . . . . . . Thug 1 | . . . . . 1 . . . . . . . Butcher 2 | . . . . . . . . 1 . 1 . . Guerrilla 1 | . . . . . . . . 1 . . . . Best Kill Streak 17 | 1 5 3 1 . 5 8 5 4 4 5 7 17 Combat Bots Only 8 | . 4 3 . . 5 8 5 4 3 3 3 8 Max Kills in Single Turn 6 | 1 2 1 1 . 2 2 2 4 1 1 5 6 Gunslinging 1 | . 1 . . . 1 1 1 . . . . 1 Exploded 3 | . . . . . . . . 3 . . 2 1 Melee . | . . . . . . . . . . . . . Uniques/NPCs Destroyed . | . . . . . . . . . . . . . Combat | -11 -10 -10 -8 -8 -6 -6 -6 -6 -6 -6 -6 -5 -------- Run | Yrd Mat Sub Rec Scr Fac Gar Fac Ext Cet Arc Hub Fac Hostile Shots Fired 1149 | . 77 60 1 . 189 151 95 152 31 9 232 152 Missed 339 | . 21 15 . . 57 46 32 53 15 3 69 28 Hits 810 | . 56 45 1 . 132 105 63 99 16 6 163 124 Melee 16 | . . . . . . 9 1 . . . . 6 Projectile 794 | . 56 45 1 . 132 96 62 99 16 6 163 118 AOE 8 | . . . . . 1 6 . . . . . 1 Critical Strikes 23 | . . . . . 2 3 2 3 1 1 8 3 Part Disruptions 1 | . . . . . . . . . . . 1 . Damage Taken 13165 | . 615 599 34 . 1857 1450 1072 1353 349 159 3072 2605 Core 832 | . 61 94 20 . 168 93 24 55 . 27 140 150 Absorbed by Shields 597 | . . . . . 60 305 . 142 90 . . . Reduced by Siege Mode 118 | . . . . . . . . . . . 19 99 Regen/Repaired (Parts) 348 | . 123 . . . 14 . 192 . . . . 19 Core Remaining (%) 56 | 100 . . . 30 . . . . . . 40 . Volleys Fired 570 | 5 86 96 6 . 48 72 36 82 13 28 23 75 Largest 5 | 2 2 2 2 . 5 5 5 5 1 3 5 5 Hottest 262 | 70 115 115 58 . 137 131 146 152 36 123 173 262 Shots Fired 1636 | 9 170 115 12 . 225 241 174 219 13 49 114 295 Gun 1470 | 9 170 67 12 . 225 241 174 143 . 27 114 288 Cannon 121 | . . 48 . . . . . 63 . 10 . . Launcher 20 | . . . . . . . . . 13 . . 7 Special 25 | . . . . . . . . 13 . 12 . . Kinetic 1350 | 5 32 79 12 . 225 241 174 165 . 37 114 266 Thermal 200 | 4 138 36 . . . . . . . 12 . 10 Explosive . | . . . . . . . . . . . . . Electromagnetic 73 | . . . . . . . . 41 13 . . 19 Robot Hit Streak 43 | 8 13 5 5 . 21 20 29 38 4 11 9 43 Robot Miss Streak 5 | . 5 3 1 . 5 5 5 2 1 2 3 4 Penetration Max 2 | . . . . . . 1 2 1 . 1 1 2 Secondary Targets 48 | . 2 . . . 6 14 8 3 . . 1 14 Max Gunslinging Chain 2 | . 1 . . . 1 1 1 1 . . 1 2 Shots Hit Robots 1106 | 8 114 25 10 . 144 156 130 166 4 53 70 226 Core Hits 545 | 2 54 14 1 . 59 87 61 63 18 21 46 119 Critical Kills 22 | . . . . . 2 . . 3 . 1 9 7 Critical Parts Destroyed 22 | . . . . . . 2 1 4 . 1 8 6 Critical Strikes 53 | . 2 2 . . 2 2 1 8 . 2 18 16 Burn 4 | . 2 2 . . . . . . . . . . Destroy 47 | . . . . . 2 2 1 7 . 2 18 15 Corrupt 2 | . . . . . . . . 1 . . . 1 Melee Attacks 62 | . . . . . . 37 . . . 18 4 3 Impact 7 | . . . . . . . . . . . 4 3 Slashing 55 | . . . . . . 37 . . . 18 . . Piercing . | . . . . . . . . . . . . . Sneak Attacks 9 | . . . . . . . . . . 9 . . Combat Hostiles . | . . . . . . . . . . . . . Follow-up Attacks . | . . . . . . . . . . . . . Damage Inflicted 29603 | 79 1473 348 196 . 2781 3373 2950 3883 968 1979 3076 8497 Guns 22495 | 79 1473 348 194 . 2781 3373 2950 2089 . 558 2453 6197 Cannons 1545 | . . . . . . . . 1402 . 143 . . Explosions 4283 | . . . . . . . . 392 968 . 623 2300 Melee 1211 | . . . . . . . . . . 1211 . . Ramming 2 | . . . 2 . . . . . . . . . Kinetic 20927 | 30 158 42 194 . 2781 3373 2950 2436 . 701 2453 5809 Thermal 2898 | 49 1315 306 . . . . . 392 50 67 . 719 Explosive 932 | . . . . . . . . . . . . 932 Electromagnetic 3633 | . . . . . . . . 1055 918 . 623 1037 Impact . | . . . . . . . . . . . . . Slashing 1211 | . . . . . . . . . . 1211 . . Piercing . | . . . . . . . . . . . . . Highest Corruption 31 | . . . . . . . 1 1 . 14 31 6 Average Corruption 3 | . . . . . . . 1 1 . 6 22 3 Corruption Purged 39 | . . . . . . . . 1 . 38 . . Corruption Blocked . | . . . . . . . . . . . . . Effects 41 | . . . . . . . 3 9 . 8 6 15 Message Errors 5 | . . . . . . . . 1 . 1 . 3 Matter Fused 6 | . . . . . . . . 2 . 2 . 2 Heat Flow Errors 7 | . . . . . . . 2 1 . 2 1 1 Energy Discharges 7 | . . . . . . . 1 1 . 1 2 2 Data Loss (minor) 5 | . . . . . . . . 2 . 2 . 1 Data Loss (major) 2 | . . . . . . . . 1 . . . 1 Misfires 2 | . . . . . . . . . . . 2 . Alerts 1 | . . . . . . . . 1 . . . . Weapon Failures 6 | . . . . . . . . . . . 1 5 Overload Shots . | . . . . . . . . . . . . . Overflow Damage 817 | . . . . . . . . 12 14 498 1 292 Projectiles 12 | . . . . . . . . 12 . . . . Explosions 307 | . . . . . . . . . 14 . 1 292 Melee 498 | . . . . . . . . . . 498 . . Knockbacks 2 | . . . . . . . . 2 . . . . Impact . | . . . . . . . . . . . . . Kinetic 1 | . . . . . . . . 1 . . . . Secondary 1 | . . . . . . . . 1 . . . . Self-Inflicted Damage 202 | . . . . . . . . 56 10 . 101 35 Shots 4 | . . . . . . . . 1 1 . 1 1 Rammed 1 | . . . 1 . . . . . . . . . Targets Rammed 1 | . . . 1 . . . . . . . . . Kicked . | . . . . . . . . . . . . . Crushed . | . . . . . . . . . . . . . Highest Temperature 466 | 50 458 10 41 . 322 236 151 371 15 162 466 426 Average Temperature 99 | 25 97 5 20 . 113 72 30 93 9 72 140 121 Received Heat Transfer 2824 | . 288 129 . . 403 384 315 353 22 45 279 606 Effects 10 | . 4 . . . . . . 1 . . 3 2 Shutdowns 3 | . . . . . . . . 1 . . 1 1 Energy Bleed 4 | . 1 . . . . . . . . . 2 1 Matter Decay 2 | . 2 . . . . . . . . . . . Short Circuit 1 | . 1 . . . . . . . . . . . Siege Activations 12 | . . . . . . . . . . . 2 10 Total Turns 118 | . . . . . . . . . . . 15 103 Longest Duration 33 | . . . . . . . . . . . 9 33 Martial Activations . | . . . . . . . . . . . . . Shielding Activations . | . . . . . . . . . . . . . Robots Disrupted . | . . . . . . . . . . . . . Combat Hostiles . | . . . . . . . . . . . . . Robots Corrupted 10 | . . . . . . . . 3 7 . . . Combat Hostiles 9 | . . . . . . . . 3 6 . . . Parts Fried 12 | . . . . . . . . 4 4 . 1 3 Impact Corruptions . | . . . . . . . . . . . . . Robots Melted 1 | . 1 . . . . . . . . . . . Combat Hostiles 1 | . 1 . . . . . . . . . . . Parts Melted 14 | . 9 1 . . 2 . . 2 . . . . Heat Transferred 6254 | 148 3848 999 . . . . . 325 100 225 . 609 Parts Sabotaged 1 | . . . . . . . 1 . . . . . Parts Stolen . | . . . . . . . . . . . . . Parts Stripped . | . . . . . . . . . . . . . Power Chain Reactions 3 | . . . . . . . . 2 1 . . . Alert | -11 -10 -10 -8 -8 -6 -6 -6 -6 -6 -6 -6 -5 ------- Run | Yrd Mat Sub Rec Scr Fac Gar Fac Ext Cet Arc Hub Fac Maximum Alert Level 5 | . . . . . 1 4 3 4 3 1 4 5 Low Security (%) 44 | 100 100 . 100 . 93 8 . . . 52 37 . Level 1 16 | . . . . . 6 24 . 58 . 47 12 . Level 2 19 | . . . . . . 21 97 6 52 . 22 44 Level 3 14 | . . . . . . 39 2 24 47 . 27 22 Level 4 3 | . . . . . . 6 . 10 . . . 15 Level 5 1 | . . . . . . . . . . . . 18 High Security . | . . . . . . . . . . . . . Max Security . | . . . . . . . . . . . . . Peak Influence 1949 | 5 113 . 68 . 258 1180 714 1197 775 383 1269 1949 Initial 655 | . . . . . . 161 619 254 655 257 . 616 Average 385 | 1 72 . 3 . 115 611 580 558 699 186 423 965 Influence Increases 10003 | 5 636 323 216 . 746 1189 578 1601 360 284 1764 2301 Destroy 0b10 Robot/C 4800 | . 400 200 60 . 440 740 420 760 160 80 500 1040 Destroy 0b10 Robot/NC 410 | 5 55 . 5 . 25 15 5 40 10 45 90 115 Destroy Leader 694 | . 98 10 . . 104 30 80 54 . . 128 190 Allied During Kill 1793 | . . 23 26 . 47 38 . 646 170 125 532 186 Successful Hack 173 | . 21 . 32 . 22 21 19 28 . . . 30 Select Force Hacks 150 | . 60 . 90 . . . . . . . . . Disable Machine 735 | . . . . . 30 15 15 15 15 30 240 375 Anti-Garrison Action 200 | . . . . . . 200 . . . . . . Destroy Structure 748 | . 2 . 3 . 18 130 9 43 5 4 184 350 Partial Spotted 30 | . . . . . . . . . . . 30 . Lose Combat Pursuer 270 | . . 90 . . 60 . 30 15 . . 60 15 Influence Decreases 8072 | 5 566 393 216 . 516 239 1239 950 887 927 505 1629 Entered New Map 2473 | . . 34 . . . 69 561 265 515 386 . 643 Time Decay 3943 | 5 546 234 215 . 346 . 428 565 302 501 295 506 Lost Part 445 | . 20 25 . . 90 90 40 20 10 . 70 80 Lost Ally 761 | . . 100 1 . 80 80 60 100 60 40 140 100 Purge Threat 450 | . . . . . . . 150 . . . . 300 Squads Dispatched 47 | . 6 . . . 7 . 4 5 . . 9 16 Investigation 11 | . 4 . . . 2 . 2 1 . . . 2 Extermination 5 | . . . . . 2 . . . . . 1 2 Reinforcement 22 | . 2 . . . 2 . 1 4 . . 6 7 Assault 7 | . . . . . . . 1 . . . 1 5 Garrison 2 | . . . . . 1 . . . . . 1 . Intercept . | . . . . . . . . . . . . . Searches Triggered . | . . . . . . . . . . . . . Construction Impeded 10 | . . . . . 1 . . 3 . . 3 3 Haulers Reinforced 3 | . . . . . 1 . . . . . 1 1 Active Scanning Responses . | . . . . . . . . . . . . . Cargo Convoy Interrupts 1 | . . . . . 1 . . . . . . . Stealth | -11 -10 -10 -8 -8 -6 -6 -6 -6 -6 -6 -6 -5 --------- Run | Yrd Mat Sub Rec Scr Fac Gar Fac Ext Cet Arc Hub Fac Distress Signals 14 | . 3 . . . 1 . . 3 2 . 3 2 Communications Jammed . | . . . . . . . . . . . . . Distress Signals . | . . . . . . . . . . . . . Times Spotted 332 | . 28 21 3 . 42 41 26 43 9 27 28 64 Peak Tracking Total 11 | . 5 6 1 . 11 8 8 5 5 2 9 9 Tactical Retreats 10 | . . 2 . . 2 . 2 1 . . 2 1 Traps | -11 -10 -10 -8 -8 -6 -6 -6 -6 -6 -6 -6 -5 ------- Run | Yrd Mat Sub Rec Scr Fac Gar Fac Ext Cet Arc Hub Fac Traps Triggered 22 | . 1 2 . . 2 10 2 2 . . 1 2 Indirectly 1 | . . . . . . . . . . . 1 . Trap Hack Attempts . | . . . . . . . . . . . . . Triggered . | . . . . . . . . . . . . . Disarmed . | . . . . . . . . . . . . . Reprogrammed . | . . . . . . . . . . . . . Reused . | . . . . . . . . . . . . . Traps Extracted . | . . . . . . . . . . . . . Installed . | . . . . . . . . . . . . . Triggered . | . . . . . . . . . . . . . Machines | -11 -10 -10 -8 -8 -6 -6 -6 -6 -6 -6 -6 -5 ---------- Run | Yrd Mat Sub Rec Scr Fac Gar Fac Ext Cet Arc Hub Fac Machines Disabled 54 | . . 2 . . 2 3 1 2 1 2 16 25 Max in Single Turn 11 | . . 1 . . . 1 1 1 1 1 11 5 Garrison Access 1 | . . . . . . . 1 . . . . . Garrison Relay 2 | . . . . . . 2 . . . . . . Network Hub 2 | . . . . . . . . . . . 2 . Machines Repaired . | . . . . . . . . . . . . . Machines Dismantled 2 | . . . . . . . . 1 1 . . . Machines Sabotaged . | . . . . . . . . . . . . . Overloaded Fab Kills . | . . . . . . . . . . . . . Hacking | -11 -10 -10 -8 -8 -6 -6 -6 -6 -6 -6 -6 -5 --------- Run | Yrd Mat Sub Rec Scr Fac Gar Fac Ext Cet Arc Hub Fac Machines Accessed 61 | . 8 2 9 6 9 2 6 10 . . 3 6 Terminals 37 | . 5 . 6 . 4 2 4 10 . . 2 4 Fabricators . | . . . . . . . . . . . . . Repair Stations 2 | . 1 . . . . . 1 . . . . . Recycling Units 7 | . 2 . 3 . 1 . . . . . . 1 Scanalyzers 3 | . . . . . 2 . . . . . . 1 Garrison Access 4 | . . . . . 2 . 1 . . . 1 . Total Hacks 164 | . 19 5 25 28 19 2 13 17 . . 4 32 Successful 97 | . 11 5 15 28 7 2 5 6 . . 1 17 Failed 66 | . 8 . 10 . 12 . 8 11 . . 3 14 Catastrophic 10 | . . . . . 2 . 2 2 . . . 4 Database Lockouts 1 | . . . . . . . . . . . . 1 Manual 78 | . 15 . 21 . 7 . 7 5 1 . 2 20 Terminals 95 | . 13 . 20 . 9 2 9 17 . . 2 23 Fabricators . | . . . . . . . . . . . . . Repair Stations 7 | . 4 . . . . . 3 . . . . . Recycling Units 10 | . 2 . 5 . 2 . . . . . . 1 Scanalyzers 13 | . . . . . 5 . . . . . . 8 Garrison Access 6 | . . . . . 3 . 1 . . . 2 . Terminal Hacks 55 | . . 5 3 28 2 2 2 6 . . . 7 Record 27 | . . 4 1 22 . . . . . . . . Part Schematic 1 | . . . 1 . . . . . . . . . Robot Analysis 7 | . . . 1 6 . . . . . . . . Open Door 8 | . . . . . 1 1 . 6 . . . . Branch Access Points 3 | . . . . . 1 . 1 . . . . 1 Emergency Access Points 1 | . . . . . . 1 . . . . . . Unreport Threat 3 | . . . . . . . 1 . . . . 2 Patrol Status 1 | . . . . . . . . . . . . 1 Zone Layout 3 | . . . . . . . . . . . . 3 Proto ID Catalog 1 | . . 1 . . . . . . . . . . Fabricator Hacks . | . . . . . . . . . . . . . Repair Station Hacks 3 | . 3 . . . . . . . . . . . Scan Component 2 | . 2 . . . . . . . . . . . Repair 1 | . 1 . . . . . . . . . . . Recycling Unit Hacks 1 | . . . 1 . . . . . . . . . Retrieve Components 1 | . . . 1 . . . . . . . . . Scanalyzer 7 | . . . . . 2 . . . . . . 5 Insert Component 1 | . . . . . . . . . . . . 1 Analyze 1 | . . . . . . . . . . . . 1 Retrieve Study 5 | . . . . . 2 . . . . . . 3 Garrison Access Hacks 3 | . . . . . 1 . 1 . . . 1 . Unlock Access 2 | . . . . . 1 . . . . . 1 . Seal Access 1 | . . . . . . . 1 . . . . . Unauthorized Hacks 28 | . 8 . 11 . 2 . 2 . . . . 5 Terminals 21 | . 6 . 8 . 2 . 1 . . . . 4 Track 1 | . . . . . . . . . . . . 1 Botnet 7 | . 1 . 2 . 1 . 1 . . . . 2 Disrupt 1 | . . . . . . . . . . . . 1 Skim 12 | . 5 . 6 . 1 . . . . . . . Fabricators . | . . . . . . . . . . . . . Repair Stations 1 | . . . . . . . 1 . . . . . Patch 1 | . . . . . . . 1 . . . . . Recycling Units 6 | . 2 . 3 . . . . . . . . 1 Tunnel 5 | . 2 . 3 . . . . . . . . . Scrapoids 1 | . . . . . . . . . . . . 1 Scanalyzers . | . . . . . . . . . . . . . Garrison Access . | . . . . . . . . . . . . . Data Cores Recovered 1 | . . . . . 1 . . . . . . . Used . | . . . . . . . . . . . . . Hacking Detections 35 | . 6 . 6 . 8 1 3 4 1 . 2 4 Full Trace Events 5 | . 1 . . . 2 . . 1 . . . 1 Feedback Events . | . . . . . . . . . . . . . Feedback Blocked . | . . . . . . . . . . . . . Robot Schematics Acquired . | . . . . . . . . . . . . . Robots Built . | . . . . . . . . . . . . . Authchips . | . . . . . . . . . . . . . Time . | . . . . . . . . . . . . . Total Robot Build Rating . | . . . . . . . . . . . . . Part Schematics Acquired 1 | . . . 1 . . . . . . . . . Parts Built . | . . . . . . . . . . . . . Authchips . | . . . . . . . . . . . . . Time . | . . . . . . . . . . . . . Total Part Build Rating . | . . . . . . . . . . . . . Part Studies Acquired 5 | . . . . . 2 . . . . . . 3 Parts Repaired 1 | . 1 . . . . . . . . . . . Time 26 | . 26 . . . . . . . . . . . Parts Recycled . | . . . . . . . . . . . . . Recycled Matter . | . . . . . . . . . . . . . Retrieved Matter . | . . . . . . . . . . . . . Retrieved Components 5 | . . . 5 . . . . . . . . . Parts Scanalyzed 1 | . . . . . . . . . . . . 1 Part Schematics Acquired . | . . . . . . . . . . . . . Parts Damaged . | . . . . . . . . . . . . . Bothacking | -11 -10 -10 -8 -8 -6 -6 -6 -6 -6 -6 -6 -5 ------------ Run | Yrd Mat Sub Rec Scr Fac Gar Fac Ext Cet Arc Hub Fac Used RIF Installer 2 | . . . . . . 2 . . . . . . Coupler Efficiency 1 | . . . . . . 1 . . . . . . Robots Hacked 4 | . . . . . . . . 4 . . . . Non-combat 2 | . . . . . . . . 2 . . . . Combat 2 | . . . . . . . . 2 . . . . Robot Hacks Applied 5 | . . . . . . . . 5 . . . . parse_system 1 | . . . . . . . . 1 . . . . no_distress 1 | . . . . . . . . 1 . . . . ignore_repairs 1 | . . . . . . . . 1 . . . . formatsys_high 2 | . . . . . . . . 2 . . . . Relay Couplers Released 9 | . . . . . . 9 . . . . . . Machine Destruction 9 | . . . . . . 9 . . . . . . Attached 1 | . . . . . . . . 1 . . . . Fabnet Peak Effective % . | . . . . . . . . . . . . . Robots Rewired 23 | . . . . . . 5 . 18 . . . . Allies Hacked . | . . . . . . . . . . . . . Hacks Repelled . | . . . . . . . . . . . . . Allies | -11 -10 -10 -8 -8 -6 -6 -6 -6 -6 -6 -6 -5 -------- Run | Yrd Mat Sub Rec Scr Fac Gar Fac Ext Cet Arc Hub Fac Total Allies 60 | . . 13 . . . 5 . 32 5 . . 5 Largest Group 26 | . . 8 8 6 6 3 . 26 24 16 12 5 Highest-Rated Group 1151 | . . 152 152 114 114 87 . 895 1151 905 659 235 Highest-Rated Ally 159 | . . 19 19 19 19 29 . 159 159 159 96 47 Initial UFD Resources 26 | . . . . . 23 23 23 23 23 23 23 26 Total Orders 28 | . . . . . . 4 3 1 9 2 4 5 STAY 17 | . . . . . . 3 . 1 6 1 4 2 ROAM 2 | . . . . . . . . . 2 . . . FOLLOW 6 | . . . . . . 1 . . 1 1 . 3 EXPLORE 3 | . . . . . . . 3 . . . . . Ally Attacks 486 | . . 48 13 . 43 20 . 132 17 17 105 91 Total Damage 11557 | . . 869 229 . 1044 188 . 2791 378 589 4014 1455 Kills 75 | . . 7 3 . 6 2 . 16 2 1 22 16 Allies Corrupted 6 | . . . . . . . 1 3 . . 2 . Allies Melted . | . . . . . . . . . . . . . Intel | -11 -10 -10 -8 -8 -6 -6 -6 -6 -6 -6 -6 -5 ------- Run | Yrd Mat Sub Rec Scr Fac Gar Fac Ext Cet Arc Hub Fac Active Infowar (turns) 6478 | 12 466 2931 . . 104 . . 220 677 838 636 594 Sensors 233 | . . . . . . . . . . . . 233 Terrain 6478 | 12 466 2931 . . 104 . . 220 677 838 636 594 Seismic 346 | . . . . . . . . . . . . 346 Robot Analysis Total 7 | . . . 1 6 . . . . . . . . Derelict Logs Recovered 6 | . . 3 . 3 . . . . . . . . Drone Launches 6 | . . . . . . . 6 . . . . . Drone Recoveries . | . . . . . . . . . . . . . Exploration | -11 -10 -10 -8 -8 -6 -6 -6 -6 -6 -6 -6 -5 ------------- Run | Yrd Mat Sub Rec Scr Fac Gar Fac Ext Cet Arc Hub Fac Turns Passed 25288 | 29 1628 7707 2275 4265 830 1549 1054 1684 677 1389 831 1370 Spaces Moved 10912 | 10 686 2966 562 1967 580 874 537 778 280 471 425 776 Core . | . . . . . . . . . . . . . Treads 4626 | 1 189 2963 562 662 1 35 37 23 . 37 81 35 Legs 9 | 9 . . . . . . . . . . . . Wheels 6277 | . 497 3 . 1305 579 839 500 755 280 434 344 741 Hover . | . . . . . . . . . . . . . Flight . | . . . . . . . . . . . . . Fastest Speed 92 | 120 160 160 400 110 92 105 120 135 105 105 135 100 Average Speed 185 | 124 164 230 400 213 101 112 132 137 114 119 155 126 Slowest Speed 400 | 160 235 400 400 400 240 232 232 232 135 240 240 240 Overloaded Moves . | . . . . . . . . . . . . . Propulsion Burnouts . | . . . . . . . . . . . . . Robots Hopped . | . . . . . . . . . . . . . Potential Cave-ins 2 | . . . . . . . . . . . 2 . Cave-ins Triggered 1 | . . . . . . . . . . . 1 . Exploration Rate (%) 64 | 3 90 94 97 87 18 90 23 86 73 96 51 28 Regions Visited 12 Branch Regions 7 Pre-discovered Areas 7 | . 2 1 4 . . . . . . . . . Known Exits Taken 5 | . . 1 . 1 1 . 1 . . . 1 . Unknown Exits Taken 6 | 1 1 . 1 . . . . 1 1 1 . . Scrap Searched 15 | . . 10 . 5 . . . . . . . . Spaces Dug 16 | . . 3 . . . 5 . 2 . . 4 2 Terrain Destroyed 411 | . . 4 2 . . 8 8 30 5 6 191 157 Melee 11 | . . . . . . 5 . . . . 4 2 Projectile 103 | . . 4 2 . . 3 8 12 . 6 28 40 AOE 297 | . . . . . . . . 18 5 . 159 115 Terrain Rammed . | . . . . . . . . . . . . . Walls Destroyed . | . . . . . . . . . . . . . Machines Disabled . | . . . . . . . . . . . . . Actions | -11 -10 -10 -8 -8 -6 -6 -6 -6 -6 -6 -6 -5 --------- Run | Yrd Mat Sub Rec Scr Fac Gar Fac Ext Cet Arc Hub Fac Total 14781 | 19 1022 3737 579 2043 712 1241 790 1241 619 1224 527 1027 Wait 2447 | . 211 596 2 19 50 99 168 172 292 669 64 105 Move 10901 | 9 685 2965 561 1966 580 873 536 777 279 470 424 776 Hop . | . . . . . . . . . . . . . Pick Up 150 | . 26 39 5 26 5 11 8 3 7 5 2 13 Fast Attach 77 | 1 3 7 . 3 5 14 9 8 3 11 . 13 Attach 48 | 2 . . . 2 10 8 4 1 4 3 5 9 Detach 22 | . 1 2 . 2 3 4 1 1 1 1 . 6 Swap 70 | . 7 10 . 2 5 . 9 14 2 7 3 11 Drop 129 | 2 3 22 4 23 3 8 14 10 10 12 2 16 Fire 570 | 5 86 96 6 . 48 72 36 82 13 28 23 75 Melee 62 | . . . . . . 37 . . . 18 4 3 Ram . | . . . . . . . . . . . . . Kick . | . . . . . . . . . . . . . Crush 1 | . . . 1 . . . . . . . . . Escape Stasis 61 | . . . . . 3 48 . 10 . . . . Rewire 219 | . . . . . . 65 . 154 . . . . Trap . | . . . . . . . . . . . . . Miscellaneous 24 | . . . . . . 2 5 9 8 . . . Route ------- -11/Scrapyard -10/Materials (discovered 5 exits: *Mat x3 / [*Min] / *Sub) -10/Subcaves (discovered 4 exits: [*Mat x2] / *Rec / *Scr) -8/Recycling (discovered 2 exits: *Fac / *Scr) -8/Scraptown (discovered 2 exits: *Fac x2) -6/Factory (discovered 9 exits: *Fac x4 / Low x2 / *Ext x2 / Gar) -6/Garrison (discovered 4 exits: *Fac x4) -6/Factory (discovered 5 exits: *Fac / Low x2 / *Ext x2) -6/Extension (discovered 2 exits: *Fac / *Cet) -6/Cetus (discovered 2 exits: *Fac / [*Arc]) -6/Archives (discovered 3 exits: *Fac / *Hub x2) -6/Hub_04(d) (discovered 4 exits: *Fac x3 / Gar) -5/Factory (discovered 2 exits: Upp x2) History --------- Turn | Location | Event 15 | -11/Scrapyard | Discovered new exit (range 3) 30 | -11/Scrapyard | Entered Materials 303 | -10/Materials | Discovered new exit (range 14) 316 | -10/Materials | Build established: Mutant 768 | -10/Materials | Build established: Hauler-Mutant 839 | -10/Materials | Repaired Lgt. Treads 910 | -10/Materials | Discovered new exit (range 7) 1088 | -10/Materials | Learned location of 2 exits from Mines 1124 | -10/Materials | Identified exit to Materials 1152 | -10/Materials | Learned Storage interactive machine intel 1169 | -10/Materials | Learned Storage stockpile data 1175 | -10/Materials | Learned Storage security intel 1190 | -10/Materials | Learned location of 1 exit from Storage 1203 | -10/Materials | Discovered exit to Materials (range 13) 1213 | -10/Materials | Learned location of 1 exit from Storage 1648 | -10/Materials | Discovered new exit (range 7) 1658 | -10/Materials | Entered Subcaves 1659 | -10/Subcaves | Approached by a straggling Scientist 1662 | -10/Subcaves | Learned 4 Materials zone layouts 2220 | -10/Subcaves | A swath of the cavern ceiling suddenly collapsed 2222 | -10/Subcaves | Ambushed by angry Subdweller bent on revenge 2731 | -10/Subcaves | Visited triangular shrine 2782 | -10/Subcaves | Found Prototype Device 2782 | -10/Subcaves | Identified V3-11A's Pendant 2787 | -10/Subcaves | Befriended Subdweller 3019 | -10/Subcaves | Learned Materials terminal intel 3061 | -10/Subcaves | Build established: Mutant 3327 | -10/Subcaves | Discovered new exit (range 4) 3329 | -10/Subcaves | Shifting Twisted Machinery released Battle Cannon 3341 | -10/Subcaves | Shifting Twisted Machinery released Sub. Machine Gun 3742 | -10/Subcaves | Befriended Subdweller 3807 | -10/Subcaves | Befriended Subdweller 3819 | -10/Subcaves | Scientist uncovered a shortcut to Scraptown 3994 | -10/Subcaves | Visited Clippyterm 3999 | -10/Subcaves | Identified exit to Recycling 4077 | -10/Subcaves | Shifting Twisted Machinery released Riot Gun 4097 | -10/Subcaves | Befriended Subdweller 4102 | -10/Subcaves | Befriended Subdweller 4104 | -10/Subcaves | Shifting Twisted Machinery released Barrage Gun 4333 | -10/Subcaves | Ambushed by angry Subdweller bent on revenge 4868 | -10/Subcaves | Approached by friendly Subdweller 4868 | -10/Subcaves | Lost 5 allies 4907 | -10/Subcaves | Core integrity fell below 50% 5147 | -10/Subcaves | Disturbed a concealed Subdweller 5152 | -10/Subcaves | Befriended Subdweller 5265 | -10/Subcaves | Visited 4L-MR0's lab 5280 | -10/Subcaves | Found Gun Armor 5522 | -10/Subcaves | Befriended Subdweller 5583 | -10/Subcaves | Discovered new exit (range 5) 5584 | -10/Subcaves | Learned location of Zion (-6) 5625 | -10/Subcaves | Shifting Twisted Machinery released Mak. Light Armor Plating 5632 | -10/Subcaves | Befriended Subdweller 5637 | -10/Subcaves | Befriended Subdweller 5652 | -10/Subcaves | Befriended Subdweller 5652 | -10/Subcaves | Befriended Subdweller 5727 | -10/Subcaves | Befriended Subdweller 7060 | -10/Subcaves | Build established: Hauler-Mutant 7656 | -10/Subcaves | A swath of the cavern ceiling suddenly collapsed 9365 | -10/Subcaves | Entered Recycling 9365 | -8/Recycling | Accompanied by 8 allies 9904 | -8/Recycling | Scanned before Scraplab entrance 10874 | -8/Recycling | Learned Factory stockpile data 10944 | -8/Recycling | Learned location of Lower Caves (-6) 11002 | -8/Recycling | Learned Storage trap positions 11013 | -8/Recycling | Discovered new exit (range 8) 11158 | -8/Recycling | Learned Storage stockpile data 11198 | -8/Recycling | Learned Storage stockpile data 11247 | -8/Recycling | Learned Storage emergency access door positions 11600 | -8/Recycling | Entered Scraplab 11632 | -8/Recycling | Discovered new exit (range 2) 11640 | -8/Recycling | Entered Scraptown 11640 | -8/Scraptown | Accompanied by 6 allies 11641 | -8/Scraptown | Identified exit to Factory 11872 | -8/Scraptown | Delivered V3-11A's Pendant to T0-NE2 in exchange for information 12024 | -8/Scraptown | Heard Great Nut preacher, LISTEN AND RECITE! 12427 | -8/Scraptown | Scanned Subdweller tech in exchange for log data 12444 | -8/Scraptown | Learned Research emergency access door positions 12448 | -8/Scraptown | Learned Factory emergency access door positions 12452 | -8/Scraptown | Learned Factory garrison access intel 12720 | -8/Scraptown | Visited UFD Registry 12720 | -8/Scraptown | Registered with UFD as "Gammacore" 13032 | -8/Scraptown | Delivered Scrap Shield to a Scientist 13415 | -8/Scraptown | Visited Infowarlord's Domain 13416 | -8/Scraptown | Build established: Mutant 13463 | -8/Scraptown | Visited Science Guys 13600 | -8/Scraptown | Visited Analyses Database 13728 | -8/Scraptown | Visited Junk Repository 13850 | -8/Scraptown | Visited Chapter 10 13981 | -8/Scraptown | Visited DA-N13 Charitable Foundation 14010 | -8/Scraptown | Found DCF Scrap (33 items) 14100 | -8/Scraptown | Visited Junk Repository 14181 | -8/Scraptown | Found Scrap Suit 14256 | -8/Scraptown | Visited Scrap Suit Storage 14367 | -8/Scraptown | Build established: Derelict-Mutant 14389 | -8/Scraptown | Visited TADAMA 14765 | -8/Scraptown | Visited Spacefarers 14815 | -8/Scraptown | Visited Cyclists 14825 | -8/Scraptown | Entered Cyclist Reading Room 14880 | -8/Scraptown | Visited Comm Corps 15223 | -8/Scraptown | Found Exp. Signal Interpreter 15820 | -8/Scraptown | Met Optimus 15820 | -8/Scraptown | Accepted into 0bPrime 15905 | -8/Scraptown | Entered Factory 15905 | -6/Factory | Accompanied by 6 allies 15905 | -6/Factory | Evolved 8 slots: Propulsion x2, Utility x3, Weapon x3 15906 | -6/Factory | Identified exit to Factory 15906 | -6/Factory | Identified exit to Lower Caves 15909 | -6/Factory | Loaded intel: 4 garrison access locations 15985 | -6/Factory | Identified exit to Extension 16210 | -6/Factory | Build established: Derelict-Gunner 16272 | -6/Factory | Lost 3 allies 16322 | -6/Factory | Allied Derelicts emerged from ambush trap array 16635 | -6/Factory | Spotted B-75 Beast 16657 | -6/Factory | Destroyed B-75 Beast 16660 | -6/Factory | Garrison activated, responded to threat 16716 | -6/Factory | Cargo convoy interrupted 16735 | -6/Factory | Identified exit to Garrison 16735 | -6/Factory | Entered Garrison 16736 | -6/Garrison | Identified exit to Factory 16763 | -6/Garrison | Lost 6 parts (2n4w) 16809 | -6/Garrison | Triggered checkpoint 16860 | -6/Garrison | Triggered checkpoint 16870 | -6/Garrison | Garrison Relay disabled 17013 | -6/Garrison | Installed Relay Interface Framework 17067 | -6/Garrison | Triggered checkpoint 17118 | -6/Garrison | Triggered checkpoint 17145 | -6/Garrison | Triggered checkpoint 17193 | -6/Garrison | Triggered checkpoint 17197 | -6/Garrison | Build established: Derelict-Tank 17391 | -6/Garrison | Triggered checkpoint 17414 | -6/Garrison | Discovered exit to Factory (range 11) 17573 | -6/Garrison | Triggered checkpoint 17608 | -6/Garrison | Destroyed 8 combat bots 17811 | -6/Garrison | Triggered checkpoint 17847 | -6/Garrison | Triggered checkpoint 18027 | -6/Garrison | Expanded RIF knowledge: Coupler Efficiency 18077 | -6/Garrison | Triggered checkpoint 18089 | -6/Garrison | Discovered exit to Factory (range 11) 18120 | -6/Garrison | Garrison Relay disabled 18181 | -6/Garrison | Triggered checkpoint 18284 | -6/Garrison | Entered Factory 18346 | -6/Factory | Discovered exit to Factory (range 4) 18480 | -6/Factory | Build established: Scavenger-Gunner 18634 | -6/Factory | First assault squad dispatched 19338 | -6/Factory | Entered Extension 19570 | -6/Extension | Rescued a captive Derelict 19572 | -6/Extension | Rescued a captive Derelict 19709 | -6/Extension | Rescued a captive Derelict 19709 | -6/Extension | Rescued a captive Derelict 19758 | -6/Extension | Rescued a captive Derelict 19760 | -6/Extension | Rescued a captive Derelict 19791 | -6/Extension | Rescued A7 20183 | -6/Extension | Build established: Commander-Gunner 20299 | -6/Extension | Spotted B-75 Beast 20314 | -6/Extension | Allies destroyed B-75 Beast 20327 | -6/Extension | Spotted B-75 Beast 20337 | -6/Extension | Destroyed B-75 Beast 20429 | -6/Extension | Rescued a captive Derelict 20434 | -6/Extension | Rescued a captive Derelict 20473 | -6/Extension | Lost 3 allies 20664 | -6/Extension | Rescued a captive Derelict 20729 | -6/Extension | Rescued a captive Derelict 20730 | -6/Extension | Rescued a captive Derelict 20808 | -6/Extension | Lost 4 allies 20922 | -6/Extension | Discovered exit to Factory (range 10) 20923 | -6/Extension | Discovered new exit (range 6) 21022 | -6/Extension | Entered Cetus 21022 | -6/Cetus | Accompanied by 21 allies (A7) 21027 | -6/Cetus | Acquired a Cetus Manufacturing Module code from A7 21040 | -6/Cetus | Spotted Cetus Guard 21040 | -6/Cetus | Spotted Cetus Guard 21043 | -6/Cetus | Spotted Cetus Guard 21044 | -6/Cetus | Spotted Cetus Guard 21049 | -6/Cetus | Destroyed Cetus Guard 21051 | -6/Cetus | Destroyed Cetus Guard 21055 | -6/Cetus | Destroyed Cetus Guard 21055 | -6/Cetus | Allies destroyed Cetus Guard 21204 | -6/Cetus | Started Cetus Manufacturing Module 21229 | -6/Cetus | Manufactured an Enhanced Grunt 21229 | -6/Cetus | Escorted A7 to Cetus Mainframe 21254 | -6/Cetus | Manufactured an Enhanced Grunt 21279 | -6/Cetus | Manufactured an Enhanced Grunt 21304 | -6/Cetus | Manufactured an Enhanced Grunt 21329 | -6/Cetus | Manufactured an Enhanced Grunt 21350 | -6/Cetus | Discovered new exit (range 16) 21364 | -6/Cetus | Build established: Commander-Tank 21367 | -6/Cetus | Spotted Cetus Guard 21368 | -6/Cetus | Spotted Cetus Guard 21370 | -6/Cetus | Spotted Cetus Guard 21371 | -6/Cetus | Spotted Cetus Guard 21378 | -6/Cetus | Allies destroyed Cetus Guard 21379 | -6/Cetus | Destroyed Cetus Guard 21381 | -6/Cetus | Destroyed Cetus Guard 21382 | -6/Cetus | Destroyed Cetus Guard 21386 | -6/Cetus | Discovered exit to Factory (range 15) 21391 | -6/Cetus | Met Revision 17 21699 | -6/Cetus | Entered Archives 21699 | -6/Archives | Accompanied by 16 allies (A7) 21704 | -6/Archives | Received a hacking code to weaken MAIN.C 21751 | -6/Archives | Discovered exit to Factory (range 14) 21812 | -6/Archives | Discovered new exit (range 16) 22018 | -6/Archives | Discovered new exit (range 16) 22074 | -6/Archives | System corruption reached 10% 23088 | -6/Archives | Entered Hub_04(d) 23088 | -6/Hub_04(d) | Accompanied by 12 allies 23125 | -6/Hub_04(d) | Identified exit to Garrison 23205 | -6/Hub_04(d) | Discovered exit to Factory (range 10) 23335 | -6/Hub_04(d) | Discovered exit to Factory (range 6) 23562 | -6/Hub_04(d) | Lost 5 allies 23676 | -6/Hub_04(d) | Discovered exit to Factory (range 15) 23788 | -6/Hub_04(d) | First assault squad dispatched 23814 | -6/Hub_04(d) | Network Hub disabled 23821 | -6/Hub_04(d) | Build established: Scavenger-Tank 23836 | -6/Hub_04(d) | Crushed by falling debris 23836 | -6/Hub_04(d) | Spotted Lightning 23836 | -6/Hub_04(d) | Spotted Lightning 23836 | -6/Hub_04(d) | Spotted Lightning 23840 | -6/Hub_04(d) | Garrison activated, responded to threat 23871 | -6/Hub_04(d) | Core integrity fell below 50% 23890 | -6/Hub_04(d) | Lost 5 parts (3u2w) 23908 | -6/Hub_04(d) | System corruption reached 30% 23916 | -6/Hub_04(d) | Network Hub disabled 23919 | -6/Hub_04(d) | Entered Factory 23919 | -5/Factory | Evolved 2 slots: Utility x2 23979 | -5/Factory | Found Prototype Launcher 23979 | -5/Factory | Identified Tesla Bomb Launcher 23984 | -5/Factory | Found Tesla Bomb Launcher 24219 | -5/Factory | First assault squad dispatched 24277 | -5/Factory | Build established: Scavenger-Gunner 24333 | -5/Factory | Scrapoids reinforcements arrived? 24496 | -5/Factory | Central database locked down 24554 | -5/Factory | Found Scrap Suit 24687 | -5/Factory | Found Scrap Suit 24838 | -5/Factory | Build established: Scavenger-Scrapper 24952 | -5/Factory | Destroyed 8 combat bots 25060 | -5/Factory | Identified exit to Upper Caves 25289 | -5/Factory | Self-destructed Last Messages --------------- 25278_ L-41 Fighter suffers critical hit (Destroy). 25278_ Destroyed Carbon-fiber Leg. 25279_ Penetrated by Slug. 25280_ System corrupted: Gauss Rifle jammed. 25280_ Slug penetrates L-41 Fighter. 25280_ Slug penetrates Wall. 25282_ Centrium Medium Armor Plating severed. 25282_ Slug penetrates L-41 Fighter. 25282_ L-41 Fighter destroyed. 25282_ Switching to secondary target: G-50 Soldier. 25282_ Slug penetrates G-50 Soldier. 25283_ Penetrated by Slug. 25285_ Ovr. Coil Gun destroyed. 25285_ Destroyed Ovr. Coil Gun. 25285_ Door malfunctions. 25287_ Slug penetrates G-67 Veteran. 25287_ Slug penetrates Wall. 25288_ G-67 Veteran IFF system glitched. Map ----- +----------------------------------------------------+ | ?????????????????????????????????????????????????? | | ?????????????????????????????????????????????????? | | ?????????????????????????????????????????????????? | | ?????????????????????????????????????????????????? | | ?????????????????????????????????????????????????? | | ?????????????????????????????????????????????????? | | ?????????????????????????????????????????????????? | | ?????????????????????????????????????????????????? | | ?????????????????????????????????????????????????? | | ?????????????????????????????????????????????????? | | ???????????????????????? ??????????????????????? | | ???????????????????????? ??????????????????????? | | ???????????????????????? ?????%????????????????? | | ???????????????????????? ????[[h/??????????????? | | ???????????????????????? ???? !^#??????????????? | | ???????????????????????? ??? % %#??????????????? | | ???????????????????????? ??? %#??????????????? | | ???????????????????????? ?? #??????????????? | | ?????????????????????####+### #??????????????? | | ?????????????????????# #??????????????? | | ????????# # #??????????????? | | ????????# """"""" # ???????????????? | | ????????# """"""" # ?????????????????? | | ????????# """"""" # ???????????????????? | | ????????# """"""" # = ###########???????????? | | ????????# i !%@ # ! ???????????? | | ###?????# "" [#ggg # """"?????????????? | | =#?????# """"""" =%= b / """"?????????????? | | #?????# """""" !#= # """"?????????????? | | #?????# " "" ! ; #R """"?????????????? | | #?????# % %% # #? ????????????? | | #?????# * ; #? """"""???????????? | | #????###"###### #; #?? """""????????????? | | #????# % #?? """"?????????????? | | [#????# #??? """??????????????? | | #????# =T #??? ??????????????? | | ###### % """ " [* #???? ??????????????? | | + = !%= m#????###??????????????? | | # * / """""" %!%[ #?????????????????????? | | ### %*%= ##????????????????????? | | k! """"""""" ???????????????????? | | ??????????????????? | | """"""""" ?????????????????? | | ????????????????? | | ????????????????? | | ####+############+############+??????????????????? | | # #?# ##???????????????????????? | | # """"#?# """"""" ##???????????????????????? | | # """"#?# """"""" ##???????????????????????? | | # """"#?# """"""" ##???????????????????????? | +----------------------------------------------------+ Best States ------------- Heat Dissipation 56 Coolant Potential 80 Energy Generation 20 Energy Capacity 315 Matter Stores 300 Matter Capacity 300 Sight Range 16 Robot Scan Range 15 Terrain Scan Range 20 Terrain Scan Density 10 Armor Coverage 1200 Core Shielding 20 Evasion (%) 55 Targeting Accuracy 24 Recoil Reduction 5 Relay Coupler Types 1 Relay Coupler Value 31 Item Schematics ----------------- Hrd. Heavy Armor Plating | -8/Recycling | Hacked Robot Schematics ------------------ None Fabricated ------------ Nothing Repaired ---------- Lgt. Treads | 12% | -10/Materials Studied --------- Com. Wheel | -6/Factory | Hacked Arm. Huge Wheel | -6/Factory | Hacked Fission Core | -5/Factory | Hacked Imp. Remote Datajack | -5/Factory | Hacked Wave Gun | -5/Factory | Hacked Alien Tech Used ----------------- None Achievements -------------- None Challenges ------------ None Game ------ Seed HardenedScatterReplicator Manual? 0 Play Time 02:41:05 Cumulative 418.6 hours Start 2026.04.16 @ 17:50:29 End 2026.04.17 @ 19:10:59 Sessions 9 Manual Loads 0 Difficulty Rogue Special Mode None Game No. 352 Rogue 316 Adventurer 36 Explorer 0 Win Type - Total 5 Types 2/0/0/1/0/0/0/2/0/0 Lore% 77 Gallery% 69 Achievement% 58 Wizard Run 0 Options --------- Layout 1 ASCII 0 Keyboard 0 Movement Numpad Keybinds 0 Fullscreen 1 Font 48/Smallcaps Map View 50x35 Zoom Use 0% Tactical HUD 1 Map Filters NONE Filters NONE Steam 1 RUN: a17caba2-dd60-41a9-9686-a57de63e115d